Cogmind - Beta 15 @@@ ROGUE MODE // 2025.08.26 @ 01:17:02 Player: Mogwok Wargfriend Result: Destroyed by WB-Q8Z(R) with Subdweller Machine Gun Performance ------------- Evolutions (0) 0 Regions Visited (2) 400 Robots Destroyed (44) 220 Value Destroyed (1048) 1048 Prototype IDs (0) 0 Alien Tech Used (0) 0 Bonus (0) 0 TOTAL SCORE: 1668 Bonus ------- None Cogmind --------- Core Integrity 0/250 Matter 60/300 Energy 250/250 System Corruption 0% Temperature Cool (0) Movement Rolling (95) Ox1 Location -10/Subcaves Parts ------- > --- POWER (1) -------- Ion Engine > --- PROPULSION (2) --- Spiked Treads Wheel > --- UTILITY (2) ------ (None) > --- WEAPON (2) ------- Grenade Launcher Subdweller Shrapnel Launcher > --- INVENTORY (5) ---- Light Treads Wheel Barrage Gun Peak State ------------ > --- POWER ------------ Ion Engine > --- PROPULSION ------- Spiked Treads Compact Wheel > --- UTILITY ---------- Scrap Shield > --- WEAPON ----------- Grenade Launcher Grenade Launcher > --- INVENTORY -------- Light Treads Wheel Wheel Grenade Launcher [Rating: 10] Favorites ----------- Power Ion Engine Engine Ion Engine Propulsion Light Treads Treads Light Treads Wheel Compact Wheel Utility Sensor Array Device Sensor Array Storage Large Storage Unit Protection Scrap Shield Weapon Grenade Launcher Energy Gun Medium Laser Ballistic Gun Assault Rifle Launcher Grenade Launcher Build | -11 -10 -10 ------- Run | Yrd Mat Sub Slots Evolved . | . . . Power . | . . . Propulsion . | . . . Utility . | . . . Weapon . | . . . Parts Attached 26 | 7 8 11 Power 3 | 1 1 1 Engine 3 | 1 1 1 Core . | . . . Reactor . | . . . Propulsion 7 | 2 2 3 Treads 4 | 1 1 2 Leg . | . . . Wheel 3 | 1 1 1 Hover . | . . . Flight . | . . . Utility 6 | 2 2 2 Device 2 | 1 1 . Storage 2 | 1 1 . Processor . | . . . Hackware . | . . . Protection 2 | . . 2 Artifact . | . . . Weapon 10 | 2 3 5 Energy Gun 1 | 1 . . Energy Cannon . | . . . Ballistic Gun 2 | 1 1 . Ballistic Cannon . | . . . Launcher 7 | . 2 5 Special Weapon . | . . . Impact Weapon . | . . . Slashing Weapon . | . . . Piercing Weapon . | . . . Special Melee Weapon . | . . . Unidentified Prototypes . | . . . Parts Lost 8 | . 2 6 Power 2 | . 1 1 Propulsion 1 | . . 1 Utility 2 | . . 2 Weapon 3 | . 1 2 Highest Loss Streak 2 | . 2 1 To Critical Strikes . | . . . Average Backups 7 | 4 8 7 Power . | . 1 . Propulsion 2 | 2 2 2 Utility . | . 1 . Weapon 3 | 1 3 3 Tool/Special . | . . . Unused Backups 12 | 1 4 7 Power . | . . . Propulsion 5 | . 2 3 Utility 2 | . 1 1 Weapon 5 | 1 1 3 Tool/Special . | . . . Average Slot Usage (%) 92 | . 97 89 Engine 13 | . 11 13 Treads 14 | . 14 14 Wheel 14 | . 14 14 Device 6 | . 14 2 Storage 8 | . 14 5 Protection 6 | . . 10 Energy Gun 8 | . 14 4 Ballistic Gun 1 | . 2 . Launcher 18 | . 11 22 Peak Build Rating 10 | 7 8 10 Average Rating 7 | 5 6 8 On Entrance 5 | . 7 8 Naked Turns . | . . . Heaviest Build 34 | 15 31 34 Greatest Support 20 | 16 16 20 Greatest Overweight (x) 9 | . 2 9 Average Overweight (x) . | . . 1 Largest Inventory Capacity 15 | 8 15 15 Average Capacity 9 | 7 10 8 Most Carried 15 | 8 15 15 Average Carried 7 | 4 8 7 Final Capacity 15 | 8 15 5 Final Carried 15 | 8 15 3 Class Distribution -------------------- 100% | Mutant Dominant Class ---------------- Mutant | -10/Materials Mutant | -10/Subcaves Resources | -11 -10 -10 ----------- Run | Yrd Mat Sub Matter Collected 1496 | 362 338 796 Remotely . | . . . Salvage Created 783 | 202 250 331 Parts 61 | 12 28 21 Haulers Intercepted 2 | . 2 . Recyclers Shooed . | . . . Parts Field Recycled . | . . . Retrieved Matter . | . . . Parts Self-Destructed 12 | . . 12 Prevented . | . . . Kills | -11 -10 -10 ------- Run | Yrd Mat Sub Combat Hostiles Destroyed 26 | . 8 18 Guns 2 | . 2 . AOE 24 | . 6 18 Classes Destroyed 12 | 3 6 3 Worker 4 | 2 2 . Builder 1 | . 1 . Tunneler 4 | 3 1 . Hauler 2 | . 2 . Recycler 1 | 1 . . Operator 1 | . 1 . Turret 2 | . . 2 Watcher 3 | . 3 . Swarmer 7 | . 3 4 Grunt 7 | . 5 2 Artisan 2 | . . 2 Subdweller 12 | . . 12 Best Kill Streak 5 | 4 5 4 Combat Bots Only 4 | . 3 4 Max Kills in Single Turn 2 | 1 2 2 Gunslinging . | . . . Exploded 2 | . 2 2 Melee . | . . . Uniques/NPCs Destroyed . | . . . Combat | -11 -10 -10 -------- Run | Yrd Mat Sub Hostile Shots Fired 157 | . 37 120 Missed 48 | . 5 43 Hits 109 | . 32 77 Projectile 109 | . 32 77 AOE 2 | . . 2 Critical Strikes 3 | . 2 1 Damage Taken 1777 | . 497 1280 Core 268 | . 90 178 Absorbed by Shields . | . . . Core Remaining (%) 100 | 100 . . Volleys Fired 102 | 14 31 57 Largest 2 | 2 2 2 Hottest 80 | 70 80 80 Shots Fired 171 | 28 57 86 Gun 67 | 28 35 4 Cannon . | . . . Launcher 104 | . 22 82 Special . | . . . Kinetic 18 | 14 4 . Thermal 49 | 14 31 4 Explosive 104 | . 22 82 Electromagnetic . | . . . Robot Hit Streak 21 | 5 7 21 Robot Miss Streak 7 | 2 7 6 Penetration Max . | . . . Secondary Targets . | . . . Shots Hit Robots 86 | 15 26 45 Core Hits 81 | 7 31 43 Critical Kills . | . . . Critical Parts Destroyed . | . . . Critical Strikes . | . . . Melee Attacks . | . . . Impact . | . . . Slashing . | . . . Piercing . | . . . Sneak Attacks . | . . . Combat Hostiles . | . . . Follow-up Attacks . | . . . Damage Inflicted 3849 | 215 1059 2575 Guns 401 | 215 173 13 Cannons . | . . . Explosions 3429 | . 886 2543 Melee . | . . . Ramming 19 | . . 19 Kinetic 138 | 116 22 . Thermal 263 | 99 151 13 Explosive 3429 | . 886 2543 Electromagnetic . | . . . Impact . | . . . Slashing . | . . . Piercing . | . . . Highest Corruption . | . . . Average Corruption . | . . . Corruption Purged . | . . . Corruption Blocked . | . . . Overload Shots . | . . . Overflow Damage 7 | . 3 4 Projectiles . | . . . Explosions 7 | . 3 4 Melee . | . . . Knockbacks . | . . . Impact . | . . . Kinetic . | . . . Secondary . | . . . Self-Inflicted Damage 305 | . 131 174 Shots 16 | . 4 12 Rammed 9 | . . 9 Targets Rammed 9 | . . 9 Kicked . | . . . Crushed . | . . . Highest Temperature 198 | 63 198 . Average Temperature 41 | 22 50 . Received Heat Transfer 558 | . 201 357 Siege Activations . | . . . Martial Activations . | . . . Shielding Activations . | . . . Robots Disrupted . | . . . Combat Hostiles . | . . . Robots Corrupted . | . . . Combat Hostiles . | . . . Parts Fried . | . . . Impact Corruptions . | . . . Robots Melted . | . . . Combat Hostiles . | . . . Parts Melted . | . . . Heat Transferred 777 | 296 444 37 Parts Sabotaged . | . . . Parts Stolen . | . . . Parts Stripped . | . . . Power Chain Reactions . | . . . Alert | -11 -10 -10 ------- Run | Yrd Mat Sub Maximum Alert Level 1 | . 1 . Low Security (%) 79 | 100 74 . Level 1 20 | . 25 . Level 2 . | . . . Level 3 . | . . . Level 4 . | . . . Level 5 . | . . . High Security . | . . . Max Security . | . . . Peak Influence 240 | 10 240 . Initial . | . . . Average 91 | 2 114 . Influence Increases 931 | 30 446 455 Destroy 0b10 Robot/C 320 | . 160 160 Destroy 0b10 Robot/NC 80 | 30 50 . Destroy Leader 50 | . 40 10 Successful Hack 14 | . 14 . Disable Machine 75 | . 75 . Destroy Structure 107 | . 107 . Lose Combat Pursuer 285 | . . 285 Influence Decreases 724 | 30 244 450 Entered New Map 98 | . . 98 Time Decay 552 | 30 214 308 Lost Part 64 | . 20 44 Lost Ally 10 | . 10 . Squads Dispatched 1 | . 1 . Investigation . | . . . Extermination . | . . . Reinforcement 1 | . 1 . Assault . | . . . Garrison . | . . . Intercept . | . . . Searches Triggered . | . . . Construction Impeded . | . . . Haulers Reinforced . | . . . Active Scanning Responses . | . . . Cargo Convoy Interrupts . | . . . Stealth | -11 -10 -10 --------- Run | Yrd Mat Sub Distress Signals . | . . . Communications Jammed . | . . . Distress Signals . | . . . Times Spotted 43 | . 15 28 Peak Tracking Total 5 | . 5 5 Tactical Retreats 5 | . . 5 Traps | -11 -10 -10 ------- Run | Yrd Mat Sub Traps Triggered . | . . . Indirectly . | . . . Trap Hack Attempts . | . . . Triggered . | . . . Disarmed . | . . . Reprogrammed . | . . . Reused . | . . . Traps Extracted . | . . . Installed . | . . . Triggered . | . . . Machines | -11 -10 -10 ---------- Run | Yrd Mat Sub Machines Disabled 9 | . 5 4 Max in Single Turn 1 | . 1 1 Machines Repaired . | . . . Machines Dismantled . | . . . Machines Sabotaged . | . . . Overloaded Fab Kills . | . . . Hacking | -11 -10 -10 --------- Run | Yrd Mat Sub Machines Accessed 4 | . 4 . Terminals 4 | . 4 . Fabricators . | . . . Repair Stations . | . . . Recycling Units . | . . . Scanalyzers . | . . . Garrison Access . | . . . Total Hacks 11 | . 11 . Successful 4 | . 4 . Failed 7 | . 7 . Catastrophic 1 | . 1 . Database Lockouts . | . . . Manual 9 | . 9 . Terminals 11 | . 11 . Fabricators . | . . . Repair Stations . | . . . Recycling Units . | . . . Scanalyzers . | . . . Garrison Access . | . . . Terminal Hacks 1 | . 1 . Alert Level 1 | . 1 . Fabricator Hacks . | . . . Repair Station Hacks . | . . . Recycling Unit Hacks . | . . . Scanalyzer . | . . . Garrison Access Hacks . | . . . Unauthorized Hacks 3 | . 3 . Terminals 3 | . 3 . Assimilate 1 | . 1 . Botnet 2 | . 2 . Fabricators . | . . . Repair Stations . | . . . Recycling Units . | . . . Scanalyzers . | . . . Garrison Access . | . . . Data Cores Recovered 1 | . 1 . Used 1 | . 1 . Hacking Detections 4 | . 4 . Full Trace Events 1 | . 1 . Feedback Events . | . . . Feedback Blocked . | . . . Robot Schematics Acquired . | . . . Robots Built . | . . . Authchips . | . . . Time . | . . . Total Robot Build Rating . | . . . Part Schematics Acquired . | . . . Parts Built . | . . . Authchips . | . . . Time . | . . . Total Part Build Rating . | . . . Parts Repaired . | . . . Time . | . . . Parts Recycled . | . . . Recycled Matter . | . . . Retrieved Matter . | . . . Retrieved Components . | . . . Parts Scanalyzed . | . . . Part Schematics Acquired . | . . . Parts Damaged . | . . . Bothacking | -11 -10 -10 ------------ Run | Yrd Mat Sub Used RIF Installer . | . . . Robots Hacked . | . . . Non-combat . | . . . Combat . | . . . Robot Hacks Applied . | . . . Relay Couplers Released . | . . . Fabnet Peak Effective % . | . . . Robots Rewired . | . . . Allies Hacked . | . . . Hacks Repelled . | . . . Allies | -11 -10 -10 -------- Run | Yrd Mat Sub Total Allies 1 | . 1 . Largest Group 1 | . 1 . Highest-Rated Group 10 | . 10 . Highest-Rated Ally 10 | . 10 . Total Orders . | . . . Ally Attacks . | . . . Total Damage . | . . . Kills . | . . . Allies Corrupted . | . . . Allies Melted . | . . . Intel | -11 -10 -10 ------- Run | Yrd Mat Sub Active Infowar (turns) 861 | 56 613 192 Sensors 726 | . 534 192 Seismic 135 | 56 79 . Robot Analysis Total . | . . . Derelict Logs Recovered 1 | . . 1 Drone Launches . | . . . Drone Recoveries . | . . . Exploration | -11 -10 -10 ------------- Run | Yrd Mat Sub Turns Passed 1854 | 155 615 1084 Spaces Moved 1326 | 101 481 744 Core 16 | 15 . 1 Treads 11 | . . 11 Legs . | . . . Wheels 1299 | 86 481 732 Hover . | . . . Flight . | . . . Fastest Speed 50 | 50 100 80 Average Speed 111 | 92 104 117 Slowest Speed 500 | 100 115 500 Overloaded Moves . | . . . Propulsion Burnouts . | . . . Robots Hopped . | . . . Potential Cave-ins . | . . . Cave-ins Triggered . | . . . Exploration Rate (%) 41 | 5 75 43 Regions Visited 2 Branch Regions 1 Pre-discovered Areas 1 | . . 1 Known Exits Taken . | . . . Unknown Exits Taken 2 | 1 1 . Scrap Searched 5 | . . 5 Spaces Dug . | . . . Terrain Destroyed 383 | . 103 280 Melee . | . . . Projectile . | . . . AOE 383 | . 103 280 Terrain Rammed . | . . . Walls Destroyed . | . . . Machines Disabled . | . . . Actions | -11 -10 -10 --------- Run | Yrd Mat Sub Total 1540 | 131 540 869 Wait 13 | . 1 12 Move 1324 | 100 480 744 Hop . | . . . Pick Up 31 | 9 12 10 Fast Attach 9 | 7 2 . Attach 9 | . 1 8 Detach 1 | . . 1 Swap 9 | . 5 4 Drop 22 | 1 8 13 Fire 102 | 14 31 57 Melee . | . . . Ram 9 | . . 9 Kick . | . . . Crush . | . . . Escape Stasis . | . . . Rewire . | . . . Trap . | . . . Miscellaneous 11 | . . 11 Route ------- -11/Scrapyard -10/Materials (discovered 3 exits: [*Mat] / [*Min] / [*Sub]) -10/Subcaves (discovered 3 exits: [*Mat x2] / [*Rec]) History --------- Turn | Location | Event 15 | -11/Scrapyard | Discovered new exit (range 15) 156 | -11/Scrapyard | Entered Materials 312 | -10/Materials | Discovered new exit (range 8) 313 | -10/Materials | Build established: Mutant 540 | -10/Materials | Discovered new exit (range 16) 731 | -10/Materials | Discovered new exit (range 7) 771 | -10/Materials | Entered Subcaves 837 | -10/Subcaves | Discovered new exit (range 8) 854 | -10/Subcaves | Ambushed by Subdweller buried in earth 860 | -10/Subcaves | Core integrity fell below 50% 874 | -10/Subcaves | Shifting Twisted Machinery released Sub. Machine Gun 883 | -10/Subcaves | Shifting Twisted Machinery released Riot Gun 1245 | -10/Subcaves | Discovered new exit (range 7) 1326 | -10/Subcaves | Core integrity fell below 20% 1458 | -10/Subcaves | Learned location of Zion (-7) 1593 | -10/Subcaves | Disturbed a concealed Subdweller 1613 | -10/Subcaves | Ambushed by Subdweller buried in earth 1779 | -10/Subcaves | Ambushed by Subdweller buried in earth 1798 | -10/Subcaves | Discovered new exit (range 10) 1847 | -10/Subcaves | Disturbed a concealed Subdweller 1855 | -10/Subcaves | Destroyed by WB-Q8Z(R) with Subdweller Machine Gun Last Messages --------------- 01766_ Scrap Shield Fragment affixed to Scrap Shield (+8). 01777_ The unstable cave ceiling collapses. 01779_ UA-JAO(R) destroyed. 01780_ PG-ZFY(R): "NAT20!" 01783_ The unstable cave ceiling collapses. 01784_ Acquired 52 matter. 01785_ Acquired 42 matter. 01788_ The unstable cave ceiling collapses. 01798_ EXIT=FOUND 01809_ Scrap Shield destroyed. 01815_ The unstable cave ceiling collapses. 01819_ PG-ZFY(R) destroyed. 01824_ The unstable cave ceiling collapses. 01825_ Acquired 14 matter. 01830_ The unstable cave ceiling collapses. 01847_ WB-Q8Z(R) angrily emerges from the Twisted Machinery. 01847_ Grenade Launcher destroyed. 01848_ WB-Q8Z(R): "SUB#$%&!" Map ----- +----------------------------------------------------+ | ???????????????????????????????????????????????? | | ???????????????????????????????????????????????? | | ???????????????????????????????????????????????? | | ???????????????????????????????????????????????? | | ???????????????????????????????????????????????? | | ???????????????????????????????????????????????? | | ???????????????????????????????????????????????? | | ???????????????????????????????????????????????? | | ???????????????????????????????????????????????? | | ???????????????????????????????????????????????? | | ????????????????????????????? ???????????????? | | ????????????????????????? ??? ???????????????? | | ????????????????? ?????? ???? ???????????????? | | ????????????????# ???? ???? #???????????????? | | ????????????????? ???? ???? #???????????????# | | ????????????????## ?## ???? #???????????????# | | ????????????????? ?# #???? #???????????????? | | ?????????????????# # ?### ##????????#####?? | | ????????????????## ? ### #????????# ### | | ????????????????? ## # #####?????# ## | | ??????????????????? ## #????## | | ????????????????????# ## # ##?### | | ???????????????????### # # ### | | ??????????????????## # # ### | | ????????????###?### ! ## # #### | | ????????????# $## @ ### | | ????????????#$ "##< & ##?? | | ?????????????# & R # #??? | | ????????????# # #< #### #?## | | ????????????#??### ## # | | ?????????????????# # | | ?????????????????## ##### # | | ??????????????????####???# ## ##### & #" | | ?????????????????????????# #####??# # | | ?????????????????????????# #??????# & # " | | ????????????????????????# #??????# ##? | | ????????????????????????# ??????# # # | | ????????????????????????## ??????#### | | ?????????????????????????# ?????????## | | ?????????????????????????# ??????????## ##### | | ??????????????????????????###???????????####???? | | ???????????????????????????????????????????????? | | ???????????????????????????????????????????????? | | ???????????????????????????????????????????????? | | ???????????????????????????????????????????????? | | ???????????????????????????????????????????????? | | ???????????????????????????????????????????????? | | ???????????????????????????????????????????????? | | ???????????????????????????????????????????????? | | ???????????????????????????????????????????????? | +----------------------------------------------------+ Best States ------------- Heat Dissipation 25 Energy Generation 10 Energy Capacity 250 Matter Stores 300 Matter Capacity 300 Sight Range 16 Robot Scan Range 14 Terrain Scan Density 10 Armor Coverage 800 Evasion (%) 50 Recoil Reduction 1 Item Schematics ----------------- None Robot Schematics ------------------ None Fabricated ------------ Nothing Repaired ---------- Nothing Alien Tech Used ----------------- None Achievements -------------- None Challenges ------------ None Game ------ Seed ConstructTerrorStripper Manual? 1 Play Time 00:21:14 Cumulative 349.0 hours Start 2025.08.26 @ 00:18:05 End 2025.08.26 @ 01:17:02 Sessions 1 Manual Loads 0 Difficulty Rogue Special Mode None Game No. 297 Rogue 297 Adventurer 0 Explorer 0 Win Type - Total 2 Types 2/0/0/0/0/0/0/0/0/0 Lore% 76 Gallery% 68 Achievement% 54 Wizard Run 0 Options --------- Layout 2 ASCII 1 Keyboard 1 Movement Numpad Keybinds 0 Fullscreen 2 Font 32/TamsynBold Map View 50x44 Zoom Use 0% Tactical HUD 1 Map Filters NONE Filters NONE Steam 1 RUN: f2348939-48c5-46fd-a3b8-ccaf8befb21f